bitfinex-derivatives/quotes_SOLF0:USTF0_20241105
["timestamp","ask_amount","ask_price","bid_price","bid_amount"]
[1730781658529,9.61517238,160.15,160.09,12.49517238]
[1730781659637,12.73937238,160.15,160.12,3.1245]
[1730781664034,3.1237,160.17,160.14,3.1242]
[1730781664238,1.3716,160.18,160.12,9.61517238]
[1730781664538,9.61517238,160.17,160.12,9.61517238]
[1730781664735,9.61517238,160.16,160.1,9.61517238]
[1730781665127,3.1241,160.15,160.1,9.61517238]
[1730781665332,1.3716,160.18,160.1,9.61517238]
[1730781665534,9.61517238,160.15,160.1,9.61517238]
[1730781665931,12.73927238,160.15,160.12,3.1245]
[1730781666533,3.1245,160.13,160.1,3.1249]
[1730781667534,9.61517238,160.11,160.04,76.0546414]
[1730781667738,9.61517238,160.11,160.06,2.88]
[1730781668142,9.61517238,160.11,160.09,3.1252]
[1730781669837,3.1247,160.12,160.09,3.1252]
[1730781669838,12.73987238,160.12,160.09,3.1252]
[1730781670938,9.61517238,160.12,160.07,9.61517238]
[1730781671144,9.61517238,160.12,160.05,2.88]
[1730781671145,9.61517238,160.14,160.08,9.61517238]
[1730781671442,3.1245,160.13,160.09,3.1251]
[1730781672339,3.1245,160.13,160.1,3.125]
[1730781674243,9.61517238,160.14,160.08,9.61517238]
[1730781674449,12.73947238,160.14,160.08,9.61517238]
[1730781675242,12.73947238,160.14,160.11,3.1247]
[1730781675443,3.1241,160.15,160.08,9.61517238]
[1730781675747,12.49517238,160.16,160.1,9.61517238]
[1730781675940,15.61917238,160.16,160.12,3.1245]
[1730781676145,15.61917238,160.16,160.1,9.61517238]
[1730781676542,9.61517238,160.14,160.09,12.49517238]
[1730781677754,3.1245,160.13,160.1,3.1249]
[1730781678143,12.73947238,160.14,160.11,3.1248]
[1730781679652,3.1243,160.14,160.11,3.1248]
[1730781680247,9.61517238,160.15,160.09,9.61517238]
[1730781680446,9.61517238,160.14,160.04,76.0546414]
[1730781680646,9.61517238,160.14,160.08,9.61517238]
[1730781680845,9.61517238,160.17,160.11,9.61517238]
[1730781681058,1.3716,160.18,160.14,9.61517238]
[1730781681248,9.61517238,160.2,160.14,9.61517238]
[1730781681451,9.61517238,160.2,160.13,2.88]
[1730781681452,9.61517238,160.2,160.15,9.61517238]
[1730781682447,0.28195,160.21,160.15,9.61517238]
[1730781682448,13.02002238,160.21,160.15,9.61517238]
[1730781683145,9.89712238,160.21,160.17,3.1235]
[1730781683350,9.61517238,160.2,160.15,9.61517238]
[1730781684149,9.61517238,160.2,160.17,3.1236]
[1730781685246,9.61517238,160.2,160.14,9.61517238]
[1730781685450,9.61517238,160.18,160.15,3.1239]
[1730781686349,12.73867238,160.18,160.15,3.1239]
[1730781687245,3.1233,160.19,160.15,3.1239]
[1730781688253,3.1233,160.19,160.16,3.1239]
[1730781693149,14.10447238,160.2,160.15,3.1239]
[1730781693344,14.10447238,160.2,160.14,9.61517238]
[1730781693849,3.1233,160.19,160.16,3.1237]
[1730781694657,10.98137238,160.2,160.14,3.1241]
[1730781694953,10.98137238,160.2,160.13,12.49517238]
[1730781695858,3.1234,160.19,160.15,3.124]
[1730781696651,3.1235,160.18,160.15,3.124]
[1730781696852,10.98137238,160.2,160.13,9.61517238]
[1730781697052,10.98137238,160.2,160.13,12.49517238]
[1730781697254,3.1233,160.19,160.13,12.49517238]
[1730781697453,3.1233,160.19,160.15,3.1239]
[1730781697652,10.98137238,160.2,160.13,12.49517238]
[1730781697653,10.98137238,160.2,160.13,2.88]
[1730781697860,9.61517238,160.18,160.12,2.88]
[1730781698159,9.61517238,160.18,160.13,9.61517238]
[1730781698461,12.73857238,160.19,160.13,9.61517238]
[1730781699054,12.73857238,160.19,160.16,3.1238]
[1730781699248,12.73857238,160.19,160.13,9.61517238]
[1730781699654,9.61517238,160.19,160.13,9.61517238]
[1730781699858,4.4893,160.2,160.15,9.61517238]
[1730781700756,4.4893,160.2,160.17,3.1236]
[1730781701864,14.10447238,160.2,160.17,3.1236]
[1730781702961,3.1231,160.2,160.17,3.1236]
[1730781703752,9.61517238,160.21,160.16,12.49517238]
[1730781703958,3.1229,160.21,160.18,3.1233]
[1730781705456,3.1229,160.21,160.17,3.1235]
[1730781705457,3.1232,160.2,160.17,3.1235]
[1730781705663,9.61517238,160.19,160.1,1.314]
[1730781705863,9.61517238,160.19,160.13,9.61517238]
[1730781706064,3.1236,160.18,160.15,3.1239]
[1730781706666,12.73847238,160.19,160.16,3.1238]
[1730781711062,12.73847238,160.19,160.11,2.88]
[1730781711063,9.61517238,160.19,160.15,9.61517238]
[1730781711265,12.73827238,160.21,160.18,3.1235]
[1730781711461,2.6317,160.22,160.16,9.61517238]
[1730781711667,1.284,160.22,160.16,9.61517238]
[1730781712366,10.89917238,160.22,160.16,9.61517238]
[1730781713775,3.1226,160.23,160.18,9.61517238]
[1730781714273,9.61517238,160.24,160.15,2.88]
[1730781714274,9.61517238,160.24,160.19,9.61517238]
[1730781714577,2.7166,160.26,160.21,9.61517238]
[1730781715074,5.8387,160.26,160.22,3.1226]
[1730781715277,9.61517238,160.25,160.22,3.1226]
[1730781715673,12.73737238,160.25,160.22,3.1226]
[1730781715974,9.61517238,160.24,160.22,3.1226]
[1730781717768,9.61517238,160.24,160.19,2.88]
[1730781718078,3.1226,160.23,160.2,3.1229]
[1730781719078,3.1227,160.22,160.19,3.1231]
[1730781721475,3.1233,160.19,160.16,3.1238]
[1730781721676,9.61517238,160.21,160.15,2.88]
[1730781722178,9.61517238,160.21,160.16,3.1238]
[1730781722874,3.1231,160.2,160.16,3.1238]
[1730781723375,9.61517238,160.2,160.17,3.1235]
[1730781723570,9.61517238,160.2,160.15,2.88]
[1730781723769,12.73817238,160.21,160.16,9.61517238]
[1730781725280,12.73817238,160.21,160.18,3.1235]
[1730781725881,12.73767238,160.23,160.2,3.123]
[1730781728883,12.73767238,160.23,160.17,9.61517238]
[1730781729078,12.73767238,160.23,160.19,3.1232]
[1730781731081,3.1236,160.18,160.15,3.1239]
[1730781731272,9.61517238,160.18,160.13,12.49517238]
[1730781731583,9.61517238,160.18,160.14,3.1242]
[1730781731785,9.61517238,160.18,160.13,12.49517238]
[1730781732685,9.61517238,160.18,160.15,3.1239]
[1730781732880,3.1233,160.19,160.15,12.73907238]
[1730781733074,12.73827238,160.2,160.15,9.61517238]
[1730781733273,12.73827238,160.2,160.17,3.1235]
[1730781743790,9.61517238,160.2,160.13,12.49517238]
[1730781743986,12.73877238,160.18,160.15,3.124]
[1730781744392,9.61517238,160.18,160.13,12.49517238]
[1730781744691,3.1238,160.17,160.14,3.1241]
[1730781746887,9.61517238,160.18,160.13,9.61517238]
[1730781747095,9.61517238,160.14,160.05,1.3896]
[1730781747291,9.61517238,160.12,160.06,9.61517238]
[1730781747485,3.1249,160.11,160.07,3.1255]
[1730781747888,3.1249,160.11,160.05,9.61517238]
[1730781748087,3.1249,160.11,160.07,3.1254]
[1730781748293,3.1249,160.11,160.05,9.61517238]
[1730781749290,3.1249,160.11,160.04,2.88]
[1730781749291,3.1255,160.08,160.01,1.3896]
[1730781749494,9.61517238,160.07,160.02,3.1265]
[1730781750592,3.126,160.06,160.02,3.1265]
[1730781750993,12.74117238,160.06,160.02,3.1265]
[1730781751300,3.1268,160.02,159.97,9.61517238]
[1730781752096,3.1268,160.02,159.98,3.1272]
[1730781752295,12.74157238,160.03,159.97,9.61517238]
[1730781752689,9.61517238,160.03,160.0,3.1269]
[1730781753192,9.61517238,160.04,160.0,9.61517238]
[1730781753387,9.61517238,160.04,160.01,3.1267]
[1730781757596,1.3203,160.05,160.02,3.1264]
[1730781757898,9.61517238,160.07,160.03,9.61517238]
[1730781758399,14.09017238,160.08,160.04,3.1261]
[1730781759809,14.09017238,160.08,160.0,2.88]
[1730781759810,3.1261,160.05,160.02,3.1265]
[1730781760701,12.74107238,160.06,160.02,3.1265]
[1730781761104,3.1259,160.06,160.02,12.74167238]
[1730781762004,3.1259,160.06,160.03,3.1264]
[1730781762499,3.126,160.05,160.02,9.61517238]
[1730781763511,10.91457238,160.07,160.02,12.74177238]
[1730781763806,3.1259,160.06,160.02,12.74177238]
[1730781764399,10.91457238,160.07,160.02,12.74177238]
[1730781764400,10.91457238,160.07,160.02,9.61517238]
[1730781764609,10.91457238,160.07,160.04,3.1261]
[1730781765017,10.91457238,160.07,160.02,9.61517238]
[1730781765517,10.91457238,160.07,160.03,3.1263]
[1730781765518,9.61517238,160.06,160.03,3.1263]
[1730781765719,9.61517238,160.06,160.0,12.49517238]
[1730781765915,3.126,160.05,160.02,3.1266]
[1730781766316,9.61517238,160.06,160.02,3.1266]
[1730781766522,12.74107238,160.06,160.02,3.1266]
[1730781768817,12.74137238,160.04,160.0,6.0068]
[1730781769222,12.74137238,160.04,160.0,3.1268]
[1730781769415,12.74137238,160.04,160.01,3.1267]
[1730781771021,9.61517238,160.04,159.99,9.61517238]
[1730781771222,9.61517238,160.06,160.01,9.61517238]
[1730781771720,9.61517238,160.06,160.03,3.1262]
[1730781772115,12.74097238,160.06,160.03,3.1262]
[1730781774617,12.74097238,160.06,159.97,2.88]
[1730781774618,10.91457238,160.07,160.02,9.61517238]
[1730781774820,10.91457238,160.07,160.04,3.126]
[1730781775122,1.2994,160.07,160.04,3.126]
[1730781775321,1.2994,160.07,160.05,3.126]
[1730781782519,3.1251,160.1,160.07,3.1255]
[1730781782728,9.61517238,160.1,160.07,3.1255]
[1730781782930,9.61517238,160.1,160.03,9.61517238]
[1730781783129,3.1252,160.09,160.06,3.1258]
[1730781783829,9.61517238,160.1,160.03,9.61517238]
[1730781784828,9.61517238,160.11,160.06,9.61517238]
[1730781785025,9.61517238,160.12,160.06,9.61517238]
[1730781786324,12.73997238,160.12,160.06,9.61517238]
[1730781786933,12.73997238,160.12,160.09,3.1252]
[1730781787930,12.73997238,160.12,160.06,9.61517238]
[1730781788126,12.73997238,160.12,160.08,3.1253]
[1730781789437,9.61517238,160.12,160.08,3.1253]
[1730781789737,3.1249,160.11,160.08,3.1253]
[1730781790236,12.73997238,160.12,160.08,3.1253]
[1730781791039,9.61517238,160.12,160.06,9.61517238]
[1730781791341,9.61517238,160.12,160.09,3.125]
[1730781791540,9.61517238,160.12,160.06,9.61517238]
[1730781792142,12.73987238,160.12,160.09,3.1251]
[1730781792641,9.61517238,160.11,160.06,9.61517238]
[1730781793432,12.73997238,160.11,160.05,12.49517238]
[1730781793638,9.61517238,160.1,160.05,12.49517238]
[1730781793935,12.73997238,160.11,160.05,12.49517238]
[1730781794844,12.73997238,160.11,160.06,9.61517238]
[1730781795242,12.73997238,160.11,160.08,3.1253]
[1730781798447,4.0455,160.13,160.1,3.125]
[1730781798448,16.78527238,160.13,160.1,3.125]
[1730781800147,9.61517238,160.11,160.08,3.1253]
[1730781801248,12.74017238,160.11,160.07,3.1255]
[1730781802444,12.74017238,160.11,160.08,3.1254]
[1730781804750,9.61517238,160.11,160.06,9.61517238]
[1730781804950,9.61517238,160.11,160.08,3.1253]
[1730781806450,12.73997238,160.11,160.08,3.1253]
[1730781807543,9.61517238,160.11,160.05,2.88]
[1730781807848,9.61517238,160.11,160.05,12.49517238]
[1730781809351,9.61517238,160.11,160.08,3.1254]
[1730781809352,12.74007238,160.11,160.08,3.1254]
[1730781811555,3.1252,160.1,160.06,3.1257]
[1730781813164,3.1257,160.07,160.04,3.1261]
[1730781813455,3.1257,160.07,160.03,2.88]
[1730781814363,3.1257,160.07,160.04,3.1262]
[1730781815760,3.1258,160.06,160.01,78.94771823]
[1730781816064,9.61517238,160.07,160.01,85.68289061]
[1730781816959,3.1259,160.06,160.02,3.1265]
[1730781820770,3.1249,160.11,160.05,9.61517238]
[1730781820968,12.49517238,160.12,160.07,9.61517238]
[1730781821865,3.1251,160.1,160.06,9.61517238]
[1730781822668,3.1251,160.1,160.06,12.74087238]
[1730781822870,12.49517238,160.12,160.06,9.61517238]
[1730781823072,2.88,160.12,160.07,9.61517238]
[1730781823272,12.49517238,160.12,160.08,3.1253]
[1730781824366,3.1249,160.11,160.08,3.1253]
[1730781824562,9.61517238,160.11,160.06,9.61517238]
[1730781824767,9.61517238,160.11,160.04,2.88]
[1730781824768,9.61517238,160.1,160.05,3.126]
[1730781825266,3.1252,160.09,160.06,3.1258]
[1730781825669,9.61517238,160.11,160.06,9.61517238]
[1730781825862,9.61517238,160.11,160.08,3.1254]
[1730781826067,9.61517238,160.11,160.06,9.61517238]
[1730781826668,9.61517238,160.11,160.07,3.1256]
[1730781827072,9.61517238,160.11,160.06,9.61517238]
[1730781827272,3.1249,160.11,160.08,3.1253]
[1730781827473,9.61517238,160.12,160.07,9.61517238]
[1730781828069,12.73977238,160.12,160.09,3.1251]
[1730781828264,9.61517238,160.12,160.09,3.1251]
[1730781831473,12.73977238,160.12,160.09,3.1251]
[1730781832671,4.0455,160.13,160.1,3.1249]
[1730781832986,1.3766,160.13,160.1,3.1249]
[1730781833477,1.3766,160.13,160.09,9.61517238]
[1730781833788,1.3766,160.13,160.1,3.125]
[1730781837089,12.73927238,160.15,160.11,3.1247]
[1730781837297,47.64231438,160.17,160.11,9.61517238]
[1730781838299,3.1241,160.15,160.12,3.1245]
[1730781838599,3.1241,160.15,160.11,9.61517238]
[1730781840396,3.1242,160.15,160.11,9.61517238]
[1730781840598,47.64231438,160.17,160.11,9.61517238]
[1730781840894,3.124,160.16,160.12,3.1245]
[1730781841102,47.64231438,160.17,160.12,3.1245]
[1730781841701,9.61517238,160.17,160.12,3.1245]
[1730781842396,3.1241,160.15,160.12,3.1245]
[1730781843088,12.73927238,160.15,160.12,3.1245]
[1730781843391,12.73927238,160.15,160.11,3.1248]
[1730781846496,12.73927238,160.15,160.12,3.1246]
[1730781846696,12.73927238,160.15,160.1,9.61517238]
[1730781846697,3.124,160.16,160.11,9.61517238]
[1730781847593,3.124,160.16,160.13,3.1244]
[1730781853097,13.73127238,160.18,160.11,9.61517238]
[1730781853301,3.1239,160.16,160.13,3.1244]
[1730781859104,3.1245,160.13,160.1,3.1249]
[1730781860506,3.1243,160.14,160.11,3.1247]
[1730781861717,3.1251,160.1,160.07,3.1255]
[1730781861903,9.61517238,160.13,160.07,9.61517238]
[1730781862103,1.3375,160.12,160.07,9.61517238]
[1730781862420,1.3375,160.12,160.05,9.61517238]
[1730781862421,9.61517238,160.11,160.05,9.61517238]
[1730781862605,9.61517238,160.11,160.05,12.47517238]
[1730781863607,3.1252,160.1,160.07,3.1256]
[1730781864006,10.97547238,160.11,160.05,12.47517238]
[1730781864313,3.1254,160.09,160.05,12.74097238]
[1730781864513,9.61517238,160.1,160.05,12.74097238]
[1730781864720,3.1254,160.08,160.05,12.74097238]
[1730781865413,3.1254,160.08,160.05,3.1258]
[1730781866814,9.61517238,160.1,160.04,9.61517238]
[1730781867111,12.74037238,160.1,160.06,3.1258]
[1730781868318,3.1253,160.09,160.06,3.1258]
[1730781868514,9.61517238,160.1,160.05,9.61517238]
[1730781868719,9.61517238,160.1,160.05,3.126]
[1730781869218,3.1253,160.09,160.06,12.74077238]
[1730781871518,2.686,160.11,160.07,3.1255]
[1730781872207,3.1252,160.1,160.07,3.1255]
[1730781872413,3.1252,160.1,160.06,12.74087238]
[1730781873523,2.686,160.11,160.06,12.74087238]
[1730781873722,3.1253,160.09,160.06,12.74087238]
[1730781879419,3.1251,160.1,160.07,3.1255]
[1730781879622,1.3603,160.11,160.07,9.61517238]
[1730781880228,4.4852,160.11,160.08,3.1254]
[1730781880820,4.4852,160.11,160.07,9.61517238]
[1730781880821,1.3603,160.11,160.07,9.61517238]
[1730781882125,1.3303,160.16,160.02,4.2497]
[1730781882126,9.61517238,160.14,160.09,9.61517238]
[1730781882926,3.1245,160.13,160.1,3.1249]
[1730781883130,4.1903,160.16,160.1,9.61517238]
[1730781883431,3.1242,160.15,160.11,3.1248]
[1730781883831,13.80547238,160.16,160.1,9.61517238]
[1730781884033,3.1242,160.15,160.11,3.1248]
[1730781886027,13.80547238,160.16,160.11,3.1248]
[1730781886028,3.1243,160.14,160.11,3.1248]
[1730781891537,3.1243,160.14,160.1,9.61517238]
[1730781891738,3.1246,160.13,160.09,12.74037238]
[1730781892638,9.61517238,160.15,160.09,9.61517238]
[1730781893935,3.1244,160.14,160.09,12.74037238]
[1730781894140,9.61517238,160.15,160.09,12.74037238]
[1730781894638,9.61517238,160.15,160.1,12.74007238]
[1730781896238,3.1245,160.13,160.1,3.1249]
[1730781904641,3.1243,160.14,160.11,3.1248]
[1730781904850,38.02765091,160.17,160.1,9.61517238]
[1730781905043,47.64282329,160.17,160.11,9.61517238]
[1730781905942,3.1241,160.15,160.12,3.1245]
[1730781906441,47.64282329,160.17,160.11,9.61517238]
[1730781906840,38.02765091,160.17,160.11,9.61517238]
[1730781907155,3.124,160.16,160.13,3.1244]
[1730781908144,2.86,160.19,160.15,3.1239]
[1730781908447,9.61517238,160.17,160.11,9.61517238]
[1730781909145,3.1239,160.16,160.13,3.1244]
[1730781911039,3.1239,160.16,160.12,3.1246]
[1730781911942,3.1236,160.18,160.13,12.73947238]
[1730781912136,9.61517238,160.18,160.13,12.73947238]
[1730781912337,9.61517238,160.2,160.14,9.61517238]
[1730781912540,3.1234,160.19,160.15,3.124]
[1730781913340,9.61517238,160.2,160.14,9.61517238]
[1730781913341,12.73827238,160.2,160.16,3.1237]
[1730781914044,12.73827238,160.2,160.16,12.73887238]
[1730781914045,3.1231,160.2,160.16,12.73887238]
[1730781914344,9.61517238,160.23,160.17,9.61517238]
[1730781914743,3.1228,160.22,160.18,3.1234]
[1730781914946,3.1228,160.22,160.17,9.61517238]
[1730781916436,3.1228,160.22,160.19,3.1233]
[1730781916645,3.1226,160.23,160.19,12.73847238]
[1730781918451,4.5223,160.25,160.21,12.73797238]
[1730781918749,1.4001,160.25,160.21,12.73797238]
[1730781918942,11.01527238,160.25,160.21,12.73797238]
[1730781919341,11.01527238,160.25,160.21,9.61517238]
[1730781919545,3.1223,160.24,160.21,9.61517238]
[1730781919743,3.1223,160.24,160.2,3.123]
[1730781920046,9.61517238,160.24,160.19,9.61517238]
[1730781920240,9.61517238,160.24,160.19,3.1232]
[1730781920440,9.61517238,160.21,160.16,12.47517238]
[1730781921052,9.61517238,160.23,160.17,9.61517238]
[1730781921241,12.73777238,160.23,160.19,3.1232]
[1730781922054,3.1226,160.23,160.19,12.73837238]
[1730781923854,3.1226,160.23,160.19,9.61517238]
[1730781924151,3.1226,160.23,160.2,3.123]
[1730781924653,9.61517238,160.24,160.2,3.123]
[1730781924855,1.4001,160.25,160.22,3.1227]
[1730781925046,2.6523,160.27,160.2,12.47517238]
[1730781925247,3.122,160.26,160.22,9.61517238]
[1730781925444,3.122,160.26,160.22,12.73777238]
[1730781925850,3.122,160.26,160.22,9.61517238]
[1730781926051,9.61517238,160.3,160.25,9.61517238]
[1730781926250,1.326,160.31,160.26,9.61517238]
[1730781926454,1.326,160.31,160.26,3.1219]
[1730781926751,1.326,160.31,160.24,2.86]
[1730781926953,1.326,160.31,160.27,9.61517238]
[1730781927349,3.53329,160.32,160.27,9.61517238]
[1730781928250,3.53329,160.32,160.28,3.1215]
[1730781928659,3.53329,160.32,160.27,9.61517238]
[1730781928856,3.53329,160.32,160.27,12.73687238]
[1730781930050,3.53329,160.32,160.28,3.1215]
[1730781930251,0.41239,160.32,160.3,9.61517238]
[1730781932958,0.41239,160.32,160.31,9.61517238]
[1730781933460,0.41239,160.32,160.31,12.73607238]
[1730781933865,0.41239,160.32,160.31,9.61517238]
[1730781934058,3.1203,160.35,160.31,12.73607238]
[1730781934852,3.1205,160.34,160.3,12.73627238]
[1730781935256,3.1205,160.34,160.28,2.86]
[1730781935459,3.1205,160.34,160.22,77.32031196]
[1730781935460,3.1208,160.32,160.29,9.61517238]
[1730781936257,3.1206,160.33,160.29,9.61517238]
[1730781938370,9.61517238,160.35,160.29,12.73637238]
[1730781938371,3.1204,160.34,160.29,12.73637238]
[1730781938566,2.6883,160.36,160.32,9.61517238]
[1730781938964,15.42347238,160.36,160.32,12.73577238]
[1730781939162,15.42347238,160.36,160.31,9.61517238]
[1730781939666,3.1202,160.35,160.31,9.61517238]
[1730781940568,15.42347238,160.36,160.31,12.73607238]
[1730781940771,12.30347238,160.36,160.31,9.61517238]
[1730781941167,3.1203,160.35,160.31,9.61517238]
[1730781941870,12.30347238,160.36,160.31,12.73597238]
[1730781941871,15.42347238,160.36,160.31,12.73597238]
[1730781942673,3.1202,160.35,160.31,12.73597238]
[1730781944667,15.42347238,160.36,160.32,12.73577238]
[1730781948072,2.6883,160.36,160.33,3.1205]
[1730781949374,1.3284,160.36,160.33,3.1205]
[1730781949566,3.12,160.36,160.32,3.1206]
[1730781949771,9.61517238,160.35,160.32,3.1206]
[1730781953775,5.6001,160.4,160.33,9.61517238]
[1730781953966,3.1198,160.37,160.33,9.61517238]
[1730781956277,3.1198,160.37,160.33,12.73567238]
[1730781956477,3.1204,160.34,160.28,1.3836]
[1730781956677,9.61517238,160.37,160.31,9.61517238]
[1730781956978,5.6001,160.4,160.33,9.61517238]
[1730781957168,5.6001,160.4,160.34,3.1202]
[1730781957169,12.73477238,160.38,160.34,3.1202]
[1730781957576,12.73477238,160.38,160.33,9.61517238]
[1730781957869,9.61517238,160.38,160.33,12.73557238]
[1730781958074,3.1198,160.37,160.33,12.73557238]
[1730781963580,3.1198,160.37,160.34,12.73547238]
[1730781963885,3.1198,160.37,160.34,9.61517238]
[1730781964885,3.1198,160.37,160.33,12.73557238]
[1730781965088,3.1201,160.36,160.33,9.61517238]
[1730781965685,3.1198,160.37,160.34,9.61517238]
[1730781967285,9.61517238,160.39,160.34,9.61517238]
[1730781967676,2.88,160.4,160.35,9.61517238]
[1730781968487,71.88278616,160.41,160.35,9.61517238]
[1730781968987,3.1197,160.38,160.35,9.61517238]
[1730781969179,71.88278616,160.41,160.35,9.61517238]
[1730781969784,9.61517238,160.39,160.31,2.86]
[1730781970086,9.61517238,160.39,160.33,9.61517238]
[1730781970983,3.1199,160.37,160.33,12.73557238]
[1730781971688,3.1193,160.4,160.36,12.73497238]
[1730781972988,3.1193,160.4,160.38,9.61517238]
[1730781973383,3.1193,160.4,160.36,3.1198]
[1730781973384,3.1193,160.4,160.36,12.73497238]
[1730781973589,1.4166,160.44,160.36,9.61517238]
[1730781973877,3.1191,160.41,160.38,9.61517238]
[1730781974091,13.91177238,160.44,160.38,9.61517238]
[1730781974986,9.61517238,160.42,160.37,9.61517238]
[1730781975577,3.1192,160.4,160.37,9.61517238]
[1730781975984,11.03177238,160.44,160.38,9.61517238]
[1730781976286,13.91177238,160.44,160.38,9.61517238]
[1730781976489,13.91177238,160.44,160.38,12.73467238]
[1730781976685,3.119,160.42,160.38,12.73467238]
[1730781976892,13.91177238,160.44,160.38,12.73467238]
[1730781977083,3.119,160.42,160.38,12.73467238]
[1730781977284,13.91177238,160.44,160.38,9.61517238]
[1730781977682,11.03177238,160.44,160.38,9.61517238]
[1730781978079,3.1191,160.41,160.38,9.61517238]
[1730781978292,1.926,160.45,160.41,3.1189]
[1730781978589,3.1187,160.43,160.39,9.61517238]
[1730781978785,11.54117238,160.45,160.39,9.61517238]
[1730781978991,3.1186,160.44,160.39,9.61517238]
[1730781979191,11.54117238,160.45,160.39,9.61517238]
[1730781979694,3.1185,160.44,160.4,3.1191]
[1730781979896,11.54117238,160.45,160.39,9.61517238]
[1730781980490,3.1188,160.43,160.39,12.73457238]
[1730781981285,3.1189,160.42,160.35,2.88]
[1730781981492,3.1189,160.42,160.38,9.61517238]
[1730781981696,9.61517238,160.43,160.29,1.3506]
[1730781981884,9.61517238,160.42,160.36,9.61517238]
[1730781983391,9.61517238,160.42,160.29,1.3506]
[1730781983597,9.61517238,160.42,160.35,9.61517238]
[1730781983795,3.1198,160.38,160.35,9.61517238]
[1730781984486,9.61517238,160.4,160.35,9.61517238]
[1730781984689,3.1194,160.39,160.35,9.61517238]
[1730781985085,3.1194,160.39,160.35,12.73517238]
[1730781985494,3.1198,160.38,160.34,2.86]
[1730781985698,3.1198,160.38,160.35,9.61517238]
[1730781985989,3.1197,160.38,160.33,9.61517238]
[1730781986197,3.1197,160.38,160.33,12.73557238]
[1730781986496,3.1197,160.38,160.33,9.61517238]
[1730781987298,3.1197,160.38,160.35,9.61517238]
[1730781988898,3.1199,160.37,160.34,9.61517238]
[1730781989096,9.61517238,160.35,160.3,9.61517238]
[1730781989291,2.86,160.38,160.28,9.61517238]
[1730781989292,9.61517238,160.34,160.28,9.61517238]
[1730781989487,9.61517238,160.34,160.3,9.61517238]
[1730781989690,9.61517238,160.35,160.3,9.61517238]
[1730781990088,3.1204,160.34,160.3,9.61517238]
[1730781990496,3.1204,160.34,160.3,12.73627238]
[1730781990893,9.61517238,160.35,160.3,9.61517238]
[1730781991098,1.3249,160.37,160.32,12.73577238]
[1730781991296,2.86,160.39,160.27,2.86]
[1730781991297,2.86,160.39,160.34,9.61517238]
[1730781991599,5.9794,160.39,160.34,12.73537238]
[1730781991900,2.86,160.39,160.34,12.73537238]
[1730781993496,3.1196,160.38,160.34,12.73537238]
[1730781999396,2.6734,160.41,160.4,3.1192]
[1730781999397,1.2904,160.41,160.4,3.1192]
[1730781999601,1.2904,160.41,160.38,9.61517238]
[1730781999910,1.2904,160.41,160.36,9.61517238]
[1730782001405,1.2904,160.41,160.37,3.1197]
[1730782001406,4.4095,160.41,160.37,3.1197]
[1730782002300,3.1191,160.41,160.37,3.1197]
[1730782002502,9.61517238,160.43,160.37,3.1197]
[1730782002697,9.61517238,160.43,160.38,3.1194]
[1730782002900,9.61517238,160.43,160.38,12.73457238]
[1730782003101,12.73397238,160.43,160.38,12.73457238]
[1730782003405,9.61517238,160.43,160.38,12.73457238]
[1730782003703,3.1187,160.43,160.38,12.73457238]
[1730782004405,12.53517238,160.44,160.38,12.73457238]
[1730782004406,3.1188,160.42,160.38,12.73457238]
[1730782004799,9.61517238,160.43,160.37,12.73487238]
[1730782005400,3.119,160.42,160.37,9.61517238]
[1730782005597,9.61517238,160.43,160.37,9.61517238]
[1730782006402,3.1191,160.41,160.37,9.61517238]
[1730782008202,3.1194,160.39,160.36,9.61517238]
[1730782010405,3.1193,160.4,160.36,9.61517238]
[1730782011808,3.1193,160.4,160.36,12.73517238]
[1730782013701,3.1196,160.38,160.36,9.61517238]
[1730782013905,9.61517238,160.38,160.33,9.61517238]
[1730782014908,3.1198,160.37,160.33,9.61517238]
[1730782016014,3.12,160.36,160.33,9.61517238]
[1730782016213,9.61517238,160.38,160.33,9.61517238]
[1730782016409,3.1203,160.35,160.32,9.61517238]
[1730782016716,12.73547238,160.35,160.3,9.61517238]
[1730782017011,9.61517238,160.35,160.3,9.61517238]
[1730782017621,3.1207,160.33,160.3,9.61517238]
[1730782019517,3.1204,160.34,160.3,9.61517238]
[1730782019712,9.61517238,160.35,160.31,9.61517238]